bitfinex/quotes_BTCUSD_20250224
["timestamp","ask_amount","ask_price","bid_price","bid_amount"]
[1740439986091,0.0954332,92405.0,92394.0,0.08655199]
[1740439987328,0.0910932,92405.0,92394.0,0.08655199]
[1740439989665,0.04993409,92420.0,92394.0,0.08655199]
[1740439989886,0.04993409,92420.0,92395.0,0.00874442]
[1740439991335,0.04993409,92420.0,92396.0,0.0758]
[1740439991336,0.0016978,92420.0,92396.0,0.0758]
[1740439993194,0.0016978,92420.0,92395.0,0.17558392]
[1740439997063,0.0016978,92420.0,92406.0,0.08655199]
[1740439997266,0.0016978,92420.0,92407.0,0.0831]
[1740439997497,0.0016978,92420.0,92408.0,0.0216752]
[1740439997725,0.0016978,92420.0,92409.0,0.17558392]
[1740439999182,0.0016978,92420.0,92409.0,0.17958392]
[1740439999183,0.0026978,92420.0,92409.0,0.17958392]
[1740439999442,0.0036978,92420.0,92409.0,0.17958392]
[1740439999673,0.0026978,92420.0,92409.0,0.17758392]
[1740439999870,0.0046978,92420.0,92410.0,0.03689111]
[1740440000870,0.0046978,92420.0,92409.0,0.18158392]
[1740440001076,0.09581002,92412.0,92409.0,0.17958392]
[1740440001466,0.09581002,92412.0,92409.0,0.002]
[1740440001685,0.09581002,92412.0,92409.0,0.004]
[1740440001894,0.09581002,92412.0,92398.0,0.17558392]
[1740440002210,0.09681002,92412.0,92409.0,0.004]
[1740440002423,0.09781002,92412.0,92409.0,0.004]
[1740440002645,0.09681002,92412.0,92409.0,0.002]
[1740440002854,0.09681002,92412.0,92409.0,0.004]
[1740440003261,0.09581002,92412.0,92398.0,0.17558392]
[1740440004594,0.09781002,92412.0,92409.0,0.004]
[1740440004749,0.09781002,92412.0,92409.0,0.002]
[1740440004977,0.09681002,92412.0,92398.0,0.17758392]
[1740440005226,0.001,92412.0,92398.0,0.17758392]
[1740440005428,0.001,92412.0,92398.0,0.17958392]
[1740440006529,0.001,92412.0,92398.0,0.002]
[1740440007327,0.0816,92411.0,92398.0,0.002]
[1740440007532,0.0816,92411.0,92395.0,0.0008489]
[1740440007533,0.01317,92410.0,92395.0,0.0008489]
[1740440007708,0.0816,92411.0,92395.0,0.0008489]
[1740440007909,0.0816,92411.0,92398.0,0.00152273]
[1740440008381,0.0816,92411.0,92395.0,0.0008489]
[1740440008715,0.0816,92411.0,92380.0,0.00449227]
[1740440008922,0.08166089,92411.0,92380.0,0.00449227]
[1740440009235,0.01307609,92410.0,92380.0,0.00449227]
[1740440011596,0.01407609,92410.0,92380.0,0.00449227]
[1740440012725,0.1,92407.0,92380.0,0.00449227]
[1740440013436,0.02,92404.0,92380.0,0.00449227]
[1740440013584,0.1251,92393.0,92380.0,0.00449227]
[1740440013790,0.0451,92390.0,92380.0,0.00449227]
[1740440013968,0.02,92385.0,92376.0,0.04321227]
[1740440014360,0.02,92382.0,92376.0,0.04321227]
[1740440014669,0.08,92380.0,92376.0,0.04321227]
[1740440014870,0.08,92378.0,92376.0,0.04321227]
[1740440015495,0.08,92378.0,92376.0,0.04364505]
[1740440016579,0.0451,92377.0,92376.0,0.04364505]
[1740440016817,0.06372438,92377.0,92376.0,0.04364505]
[1740440017980,0.06472438,92377.0,92376.0,0.04364505]
[1740440018183,0.09830113,92377.0,92376.0,0.04449395]
[1740440018388,0.09830113,92377.0,92364.0,0.018304]
[1740440018389,0.1,92374.0,92364.0,0.018304]
[1740440018663,0.12,92368.0,92364.0,0.018304]
[1740440018800,0.12,92367.0,92366.0,13.81750185]
[1740440019177,1.19169452,92367.0,92366.0,13.69550185]
[1740440019374,1.18569452,92367.0,92366.0,13.69550185]
[1740440019538,1.18569452,92367.0,92366.0,13.69000185]
[1740440019733,1.19957452,92367.0,92366.0,13.64080185]
[1740440020127,1.38684507,92367.0,92366.0,13.64080185]
[1740440020330,1.40546945,92367.0,92366.0,13.6266499]
[1740440020869,1.40546945,92367.0,92366.0,13.5266852]
[1740440021010,1.40546945,92367.0,92366.0,13.42097869]
[1740440021214,1.40546945,92367.0,92366.0,13.11889838]
[1740440021434,1.31740048,92367.0,92366.0,12.962228]
[1740440021635,1.66384643,92367.0,92366.0,12.85086136]
[1740440021858,3.07764643,92367.0,92366.0,12.8075736]
[1740440022072,3.09764643,92367.0,92366.0,12.55667488]
[1740440022232,2.07806543,92367.0,92366.0,12.43671725]
[1740440022411,2.07806543,92367.0,92366.0,12.43661616]
[1740440022618,2.07806543,92367.0,92366.0,12.43633851]
[1740440022818,2.57806543,92367.0,92366.0,12.41161404]
[1740440023017,2.55402088,92367.0,92366.0,12.11125356]
[1740440023219,2.55402088,92367.0,92366.0,12.01203934]
[1740440023421,2.55336577,92367.0,92366.0,11.96155663]
[1740440023663,2.57660929,92367.0,92366.0,11.35021626]
[1740440023865,2.57660929,92367.0,92366.0,11.29944737]
[1740440024065,2.57660929,92367.0,92366.0,11.18084269]
[1740440024265,2.57660929,92367.0,92366.0,11.05805361]
[1740440024611,2.57660929,92367.0,92366.0,11.00511245]
[1740440025090,2.53660929,92367.0,92366.0,10.4881792]
[1740440025304,3.05402088,92367.0,92366.0,10.43543397]
[1740440025511,3.06725443,92367.0,92366.0,10.30761314]
[1740440025645,3.05337443,92367.0,92366.0,10.30761314]
[1740440025848,3.06725443,92367.0,92366.0,10.30761314]
[1740440026048,3.06725443,92367.0,92366.0,10.28035006]
[1740440026304,3.06725443,92367.0,92366.0,10.26037175]
[1740440026498,3.06725443,92367.0,92366.0,10.2107636]
[1740440026499,3.05402088,92367.0,92366.0,10.2107636]
[1740440026696,3.05402088,92367.0,92366.0,9.96427477]
[1740440026697,3.06718387,92367.0,92366.0,9.96427477]
[1740440027031,3.06718387,92367.0,92366.0,9.49593133]
[1740440027311,3.06718387,92367.0,92366.0,8.94608558]
[1740440027509,3.03318387,92367.0,92366.0,8.94608558]
[1740440027712,3.06718387,92367.0,92366.0,8.93718558]
[1740440027916,3.06718387,92367.0,92366.0,8.91917808]
[1740440028069,3.05402088,92367.0,92366.0,8.88308985]
[1740440028269,3.05402088,92367.0,92366.0,8.83980965]
[1740440028471,3.06508253,92367.0,92366.0,8.83980965]
[1740440028670,3.28369275,92367.0,92366.0,8.83360965]
[1740440029143,3.26981275,92367.0,92366.0,8.82984273]
[1740440029321,3.55019275,92367.0,92366.0,8.82974167]
[1740440029648,3.55019275,92367.0,92366.0,8.82704167]
[1740440029819,3.55843692,92367.0,92366.0,8.21933778]
[1740440030025,3.5369611,92367.0,92366.0,8.17450212]
[1740440030302,4.24159587,92367.0,92366.0,8.13637372]
[1740440030509,4.24159587,92367.0,92366.0,7.7620026]
[1740440030679,4.25289731,92367.0,92366.0,7.74686572]
[1740440030880,4.25289731,92367.0,92366.0,7.63923585]
[1740440031085,4.25289731,92367.0,92366.0,7.60861385]
[1740440031295,4.25289731,92367.0,92366.0,7.59395833]
[1740440031494,4.25289731,92367.0,92366.0,6.78261095]
[1740440031702,3.89539659,92367.0,92366.0,6.77095171]
[1740440031900,3.87613838,92367.0,92366.0,6.77095171]
[1740440032098,7.94027113,92367.0,92366.0,6.77095171]
[1740440032322,6.27300213,92367.0,92366.0,6.77095171]
[1740440032453,5.95016913,92367.0,92366.0,6.77095171]
[1740440032649,5.97804913,92367.0,92366.0,6.77095171]
[1740440032854,5.99804913,92367.0,92366.0,6.77085066]
[1740440033051,5.99804913,92367.0,92366.0,6.65482279]
[1740440033274,5.96404913,92367.0,92366.0,6.65430381]
[1740440033531,7.28815113,92367.0,92366.0,6.6542028]
[1740440033816,3.21013838,92367.0,92366.0,6.6542028]
[1740440034112,3.96477875,92367.0,92366.0,6.63557842]
[1740440034489,3.96477875,92367.0,92366.0,6.63368668]
[1740440034908,3.96477875,92367.0,92366.0,6.52881558]
[1740440037215,3.96477875,92367.0,92366.0,6.51678969]
[1740440037416,3.95003696,92367.0,92366.0,6.48436419]
[1740440037708,3.95003696,92367.0,92366.0,6.42024468]
[1740440037906,7.23632143,92367.0,92366.0,6.38243665]
[1740440038313,7.23632143,92367.0,92366.0,6.37554717]
[1740440038565,3.93170543,92367.0,92366.0,6.34312167]
[1740440038715,3.93170543,92367.0,92366.0,6.28843173]
[1740440039520,3.93170543,92367.0,92366.0,6.25781773]
[1740440039734,3.95003696,92367.0,92366.0,6.25781773]
[1740440040147,3.96441082,92367.0,92366.0,6.25781773]
[1740440040511,3.96441082,92367.0,92366.0,6.22611838]
[1740440041091,3.96441082,92367.0,92366.0,6.21866068]
[1740440041293,3.95003696,92367.0,92366.0,6.21855973]
[1740440041507,3.73892674,92367.0,92366.0,6.21855973]
[1740440041823,3.96840883,92367.0,92366.0,6.21845883]
[1740440042466,3.96791943,92367.0,92366.0,6.20935883]
[1740440042686,3.96961803,92367.0,92366.0,6.20935883]
[1740440042863,3.96961803,92367.0,92366.0,6.15013201]
[1740440043042,3.96961803,92367.0,92366.0,5.96386821]
[1740440043246,3.96961803,92367.0,92366.0,5.95677193]
[1740440043449,3.96961803,92367.0,92366.0,5.90873055]
[1740440043626,3.96961803,92367.0,92366.0,5.87618075]
[1740440044050,3.96961803,92367.0,92366.0,5.86634685]
[1740440044387,3.19635328,92367.0,92366.0,5.86634685]
[1740440044928,3.19635328,92367.0,92366.0,5.85023612]
[1740440045114,3.89635328,92367.0,92366.0,5.78016881]
[1740440045342,3.89635328,92367.0,92366.0,5.71202748]
[1740440045548,3.89635328,92367.0,92366.0,5.67325427]
[1740440045753,3.89635328,92367.0,92366.0,5.64069335]
[1740440045900,3.68524306,92367.0,92366.0,5.64069335]
[1740440046114,3.68524306,92367.0,92366.0,5.38659953]
[1740440046453,3.66687119,92367.0,92366.0,5.28663483]
[1740440046984,3.67437119,92367.0,92366.0,5.28663483]
[1740440047211,3.13437119,92367.0,92366.0,4.97138943]
[1740440047416,3.18937119,92367.0,92366.0,4.97138943]
[1740440047613,4.15986616,92367.0,92366.0,4.97138943]
[1740440047794,4.71374616,92367.0,92366.0,4.97138943]
[1740440048190,3.47374616,92367.0,92366.0,4.97138943]
[1740440048458,3.47374616,92367.0,92366.0,4.96139296]
[1740440048664,3.99986616,92367.0,92366.0,4.96139296]
[1740440048813,7.25048216,92367.0,92366.0,4.96139296]
[1740440049024,5.09053616,92367.0,92366.0,4.96139296]
[1740440049187,4.43509086,92367.0,92366.0,5.04189296]
[1740440049389,3.99769986,92367.0,92366.0,5.02015057]
[1740440049801,3.48369986,92367.0,92366.0,5.02015057]
[1740440050033,3.22583041,92367.0,92366.0,5.02015057]
[1740440050254,1.90632041,92367.0,92366.0,5.02015057]
[1740440050457,1.78051541,92367.0,92366.0,5.02015057]
[1740440050722,1.69109741,92367.0,92366.0,5.02015057]
[1740440050857,1.34318241,92367.0,92366.0,4.97505714]
[1740440051057,0.82318241,92367.0,92366.0,4.83455615]
[1740440051261,0.82918241,92367.0,92366.0,4.83455615]
[1740440051538,0.82318241,92367.0,92366.0,4.83365528]
[1740440051740,0.84318241,92367.0,92366.0,4.83365528]
[1740440052086,0.82918241,92367.0,92366.0,4.83365528]
[1740440052288,0.84318241,92367.0,92366.0,4.83365528]
[1740440052731,0.84490142,92367.0,92366.0,4.83365528]
[1740440053160,1.34490142,92367.0,92366.0,4.83365528]
[1740440053469,1.35878142,92367.0,92366.0,4.64048007]
[1740440053784,2.75638142,92367.0,92366.0,4.34516737]
[1740440053957,2.43200042,92367.0,92366.0,4.34516737]
[1740440054100,3.23470042,92367.0,92366.0,4.33946939]
[1740440054298,6.55702804,92367.0,92366.0,4.33393858]
[1740440054640,6.55702804,92367.0,92366.0,4.32840771]
[1740440055156,3.25241204,92367.0,92366.0,4.32840771]
[1740440055590,3.25241204,92367.0,92366.0,4.32676382]
[1740440055747,3.25069303,92367.0,92366.0,4.27042175]
[1740440056468,3.24455434,92367.0,92366.0,4.27042175]
[1740440057284,4.01781909,92367.0,92366.0,4.27042175]
[1740440058584,4.01781909,92367.0,92366.0,4.20688099]
[1740440058797,4.01781909,92367.0,92366.0,4.08226863]
[1740440058798,4.02531909,92367.0,92366.0,4.08226863]
[1740440059131,4.00760747,92367.0,92366.0,3.15971798]
[1740440059299,4.70760747,92367.0,92366.0,2.75123949]
[1740440059499,4.70760747,92367.0,92366.0,1.05102961]
[1740440059698,4.71896694,92367.0,92366.0,0.21415122]
[1740440059878,0.574,92355.0,92354.0,0.05576753]
[1740440060081,0.574,92343.0,92342.0,4.37711533]
[1740440060332,2.61506188,92343.0,92342.0,4.08583466]
[1740440060469,2.60617641,92343.0,92342.0,3.32665237]
[1740440060669,3.29313365,92343.0,92342.0,3.29210903]
[1740440060869,3.28781376,92343.0,92342.0,3.28797354]
[1740440061073,3.28781376,92343.0,92342.0,3.28633671]
[1740440061270,3.32185702,92343.0,92342.0,3.20399086]
[1740440061478,3.30705691,92343.0,92342.0,2.94113785]
[1740440061692,3.31811168,92343.0,92342.0,2.91287816]
[1740440061892,3.31811168,92343.0,92342.0,2.44871853]
[1740440062089,3.31811168,92343.0,92342.0,1.57476808]
[1740440062317,3.31945813,92343.0,92342.0,1.5168222]
[1740440062516,3.27157813,92343.0,92342.0,1.35574389]
[1740440062720,3.30705691,92343.0,92342.0,1.24429889]
[1740440062955,4.67060091,92343.0,92342.0,1.24305232]
[1740440063295,6.20857337,92343.0,92342.0,1.24174811]
[1740440063552,6.25645337,92343.0,92342.0,1.24174811]
[1740440063755,6.20857337,92343.0,92342.0,1.22002811]
[1740440063989,6.22245337,92343.0,92342.0,1.21883011]
[1740440064368,6.23645337,92343.0,92342.0,1.21883011]
[1740440064597,6.00534315,92343.0,92342.0,1.217581]
[1740440064798,6.02534315,92343.0,92342.0,1.217581]
[1740440064986,6.22245337,92343.0,92342.0,1.21629098]
[1740440065149,5.53645337,92343.0,92342.0,1.21629098]
[1740440065364,5.55687161,92343.0,92342.0,1.21629098]
[1740440065564,5.55687161,92343.0,92342.0,1.18122268]
[1740440065990,5.52287161,92343.0,92342.0,1.18032502]
[1740440066200,4.74960686,92343.0,92342.0,1.17862502]
[1740440066408,4.74960686,92343.0,92342.0,1.10387232]
[1740440066538,5.29632431,92343.0,92342.0,1.10354587]
[1740440066733,5.26232431,92343.0,92342.0,1.05960282]
[1740440067141,5.26232431,92343.0,92342.0,1.05843723]
[1740440067408,5.26232431,92343.0,92342.0,1.04963723]
[1740440067786,5.29632431,92343.0,92342.0,1.04963723]
[1740440068250,5.29632431,92343.0,92342.0,1.04844358]
[1740440068251,3.93278031,92343.0,92342.0,1.04844358]
[1740440068402,5.29632431,92343.0,92342.0,1.04644358]
[1740440068851,5.29632431,92343.0,92342.0,1.04509609]
[1740440069024,5.29632431,92343.0,92342.0,1.03839609]
[1740440069231,5.29632431,92343.0,92342.0,1.03560674]
[1740440069427,3.93278031,92343.0,92342.0,1.03560674]
[1740440069997,3.93278031,92343.0,92342.0,1.03427186]
[1740440070234,3.93278031,92343.0,92342.0,1.03402147]
[1740440070439,3.93236207,92343.0,92342.0,1.0324631]
[1740440070636,3.93236207,92343.0,92342.0,0.8919431]
[1740440070637,3.47890483,92343.0,92342.0,0.8919431]
[1740440070951,3.47890483,92343.0,92342.0,0.89068776]
[1740440071149,3.47890483,92343.0,92342.0,0.88528776]
[1740440071377,3.74540483,92343.0,92342.0,0.88528776]
[1740440071661,3.74540483,92343.0,92342.0,0.8839975]
[1740440071662,4.39872883,92343.0,92342.0,0.8839975]
[1740440071863,4.93872883,92343.0,92342.0,0.8839975]
[1740440072013,4.41140483,92343.0,92342.0,0.83774568]
[1740440072221,4.41140483,92343.0,92342.0,0.22099375]
[1740440072420,4.41140483,92343.0,92342.0,0.21349375]
[1740440072758,5.63872883,92343.0,92342.0,0.21211762]
[1740440073173,4.41140483,92343.0,92342.0,0.21096125]
[1740440073329,4.41140483,92343.0,92342.0,0.06782547]
[1740440073330,4.55970483,92343.0,92342.0,0.06782547]
[1740440073534,4.55970483,92343.0,92301.0,0.00304]
[1740440073535,0.074,92339.0,92338.0,0.16725553]
[1740440073761,0.09571,92334.0,92333.0,13.45728249]
[1740440073959,1.69767677,92334.0,92333.0,13.45728249]
[1740440074212,1.69295372,92334.0,92333.0,12.35149636]
[1740440074534,1.84606889,92334.0,92333.0,11.62957086]
[1740440074691,1.84606889,92334.0,92333.0,11.21458261]
[1740440074856,1.84606889,92334.0,92333.0,11.1546095]
[1740440075064,1.87397132,92334.0,92333.0,10.9927262]
[1740440075339,2.77105911,92334.0,92333.0,10.70983982]
[1740440075547,3.27105911,92334.0,92333.0,10.39960728]
[1740440075840,3.74871224,92334.0,92333.0,10.03238184]
[1740440076038,3.24271224,92334.0,92333.0,9.70901084]
[1740440076250,3.78271224,92334.0,92333.0,9.32071512]
[1740440076444,3.07855911,92334.0,92333.0,9.03667998]
[1740440076648,3.0897466,92334.0,92333.0,8.54986495]
[1740440076849,3.14375911,92334.0,92333.0,7.50953585]
[1740440077053,3.25805911,92334.0,92333.0,7.14375097]
[1740440077227,3.25907525,92334.0,92333.0,6.97035656]
[1740440077431,3.25907525,92334.0,92333.0,6.76545356]
[1740440077636,3.25907525,92334.0,92333.0,6.52594576]
[1740440077963,3.25907525,92334.0,92333.0,5.96772617]
[1740440078100,3.24785911,92334.0,92333.0,5.93792809]
[1740440078305,3.24785911,92334.0,92333.0,5.64586509]
[1740440078306,4.03300424,92334.0,92333.0,5.64586509]
[1740440078505,4.03300424,92334.0,92333.0,5.53365112]
[1740440078729,4.01912424,92334.0,92333.0,5.53365112]
[1740440078984,4.03300424,92334.0,92333.0,5.53365112]
[1740440079471,4.71912424,92334.0,92333.0,5.53365112]
[1740440079680,4.69900424,92334.0,92333.0,5.50366172]
[1740440079880,4.73300424,92334.0,92333.0,5.50366172]
[1740440080302,4.73300424,92334.0,92333.0,5.49938531]
[1740440080543,4.73300424,92334.0,92333.0,5.49638531]
[1740440080905,4.03300424,92334.0,92333.0,5.49638531]
[1740440081604,4.03300424,92334.0,92333.0,4.81244869]
[1740440081822,4.03300424,92334.0,92333.0,4.65301449]
[1740440082027,4.08632386,92334.0,92333.0,4.45331105]
[1740440082323,4.08632386,92334.0,92333.0,4.41561208]
[1740440082565,4.09737863,92334.0,92333.0,4.39926785]
[1740440082756,4.09737863,92334.0,92333.0,4.18538714]
[1740440083065,4.79737863,92334.0,92333.0,3.86657599]
[1740440083272,4.78349863,92334.0,92333.0,3.86091599]
[1740440083471,4.79737863,92334.0,92333.0,3.83365319]
[1740440083642,4.76461386,92334.0,92333.0,3.73942255]
[1740440083856,4.77566863,92334.0,92333.0,3.72836778]
[1740440084054,4.77566863,92334.0,92333.0,3.72556778]
[1740440084301,4.77566863,92334.0,92333.0,3.71253547]
[1740440084430,4.77566863,92334.0,92333.0,3.43972444]
[1740440084632,4.77566863,92334.0,92333.0,3.38291247]
[1740440084837,4.83019999,92334.0,92333.0,3.32587627]
[1740440085176,4.76466863,92334.0,92333.0,3.14666833]
[1740440085335,4.76466863,92334.0,92333.0,3.14656749]
[1740440085531,4.76466863,92334.0,92333.0,2.93523085]
[1740440085838,4.55355841,92334.0,92333.0,2.75654685]
[1740440086036,4.55355841,92334.0,92333.0,2.66424603]
[1740440086335,4.55355841,92334.0,92333.0,2.64037757]
[1740440086539,4.55355841,92334.0,92333.0,2.63917757]
[1740440086958,4.55355841,92334.0,92333.0,2.63677757]
[1740440087170,4.55355841,92334.0,92333.0,2.63437757]
[1740440087371,4.69946863,92334.0,92333.0,2.63437757]
[1740440087657,4.69946863,92334.0,92333.0,2.63127757]
[1740440088204,4.68558863,92334.0,92333.0,2.6243759]
[1740440088536,4.94354863,92334.0,92333.0,2.6116759]
[1740440088760,4.94354863,92334.0,92333.0,2.4007309]
[1740440088976,4.94354863,92334.0,92333.0,2.3920309]
[1740440089123,4.94354863,92334.0,92333.0,2.2454409]
[1740440089322,5.00874863,92334.0,92333.0,1.9170729]
[1740440089521,5.00874863,92334.0,92333.0,1.37311687]
[1740440089720,5.00874863,92334.0,92333.0,1.15450687]
[1740440089947,5.00874863,92334.0,92333.0,0.85279587]
[1740440090144,5.00874863,92334.0,92333.0,0.13324248]
[1740440090345,0.574,92321.0,92320.0,0.41045994]
[1740440090574,0.2535,92319.0,92304.0,0.00039004]
[1740440090769,0.2535,92319.0,92289.0,0.21171149]
[1740440090770,0.574,92301.0,92300.0,13.19363247]
[1740440090970,5.76874543,92301.0,92300.0,13.19363247]
[1740440091167,5.52925243,92301.0,92300.0,13.19363247]
[1740440091350,3.52742743,92301.0,92300.0,13.19363247]
[1740440091568,3.53492743,92301.0,92300.0,13.19363247]
[1740440091971,3.53535968,92301.0,92300.0,13.13936247]
[1740440092309,5.4821898,92301.0,92300.0,13.08509247]
[1740440092503,3.66353968,92301.0,92300.0,13.04611825]
[1740440092669,3.67897541,92301.0,92300.0,12.92196255]
[1740440092870,3.67897541,92301.0,92300.0,12.86144888]
[1740440093094,4.36353968,92301.0,92300.0,12.49365722]
[1740440093414,4.36353968,92301.0,92300.0,12.00080646]
[1740440093617,4.36353968,92301.0,92300.0,11.648018]
[1740440093828,4.87518636,92301.0,92300.0,11.356026]
[1740440094262,4.87518636,92301.0,92300.0,10.84119468]
[1740440094437,4.84965968,92301.0,92300.0,10.607693]
[1740440094730,4.86353968,92301.0,92300.0,10.2237687]
[1740440095033,4.86353968,92301.0,92300.0,10.21290256]
[1740440095266,4.86353968,92301.0,92300.0,10.21091256]
[1740440095445,4.84965968,92301.0,92300.0,10.20936256]
[1740440095606,4.81565968,92301.0,92300.0,10.20936256]
[1740440095805,7.42857312,92301.0,92300.0,10.1985064]
[1740440096005,7.05335012,92301.0,92300.0,10.19288673]
[1740440096209,6.4841829,92301.0,92300.0,10.17951677]
[1740440096429,6.5181829,92301.0,92300.0,10.1752353]
[1740440096778,5.89499312,92301.0,92300.0,10.2495338]
[1740440097041,5.88099312,92301.0,92300.0,10.24847308]
[1740440097282,5.88111312,92301.0,92300.0,10.29797308]
[1740440097509,5.86711312,92301.0,92300.0,10.2941459]
[1740440097712,5.86099312,92301.0,92300.0,10.2891459]
[1740440097835,5.83536512,92301.0,92300.0,10.2891459]
[1740440098046,5.07610037,92301.0,92300.0,10.27841557]
[1740440098246,4.09038937,92301.0,92300.0,10.27841557]
[1740440098567,4.09038937,92301.0,92300.0,10.2480357]
[1740440098900,4.13038937,92301.0,92300.0,10.2480357]
[1740440099255,4.90365412,92301.0,92300.0,10.2480357]
[1740440100206,4.90365412,92301.0,92300.0,10.2488844]
[1740440100623,5.00407412,92301.0,92300.0,10.2488844]
[1740440100835,5.09768003,92301.0,92300.0,10.1238844]
[1740440100980,4.18936703,92301.0,92300.0,10.11097448]
[1740440101181,4.18936703,92301.0,92300.0,9.99232181]
[1740440101386,4.18936703,92301.0,92300.0,9.9223742]
[1740440101387,4.17484112,92301.0,92300.0,9.9223742]
[1740440101583,4.18814887,92301.0,92300.0,9.84752477]
[1740440101815,4.18064887,92301.0,92300.0,9.84638399]
[1740440102007,4.88064887,92301.0,92300.0,9.79169254]
[1740440102189,4.88064887,92301.0,92300.0,9.73440977]
[1740440102391,4.88814887,92301.0,92300.0,9.72638977]
[1740440102731,4.88814887,92301.0,92300.0,9.4218361]
[1740440102948,4.87484112,92301.0,92300.0,9.40776835]
[1740440103090,4.87484112,92301.0,92300.0,8.77999435]
[1740440103493,4.87484112,92301.0,92300.0,8.77119435]
[1740440103864,4.87484112,92301.0,92300.0,8.53234527]
[1740440103991,4.87484112,92301.0,92300.0,8.35955233]
[1740440104199,4.87484112,92301.0,92300.0,8.3466204]
[1740440104602,4.87484112,92301.0,92300.0,8.2377734]
[1740440104899,4.87484112,92301.0,92300.0,8.23726141]
[1740440105107,4.87484112,92301.0,92300.0,8.14199141]
[1740440105307,4.87484112,92301.0,92300.0,8.03107441]
[1740440105509,4.87484112,92301.0,92300.0,8.03025441]
[1740440105748,4.87484112,92301.0,92300.0,8.01305194]
[1740440105945,4.87484112,92301.0,92300.0,8.0127943]
[1740440106190,4.87484112,92301.0,92300.0,7.9039473]
[1740440106432,4.87484112,92301.0,92300.0,7.84098591]
[1740440106599,4.89114444,92301.0,92300.0,7.63956091]
[1740440106756,4.89114444,92301.0,92300.0,7.02572332]
[1740440106960,4.82594444,92301.0,92300.0,6.10239957]
[1740440107166,4.82594444,92301.0,92300.0,5.96684373]
[1740440107362,4.89114444,92301.0,92300.0,5.37234462]
[1740440107562,4.87484112,92301.0,92300.0,4.8317046]
[1740440107800,4.87484112,92301.0,92300.0,3.97300703]
[1740440107992,4.87484112,92301.0,92300.0,3.90115758]
[1740440108210,4.87484112,92301.0,92300.0,3.51716626]
[1740440108413,0.574,92267.0,92266.0,13.05603212]
[1740440108619,3.85042743,92267.0,92266.0,12.32142941]
[1740440108818,3.86673075,92267.0,92266.0,12.26590208]
[1740440109040,3.86673075,92267.0,92266.0,11.86262362]
[1740440109522,3.793466,92267.0,92266.0,11.40289232]
[1740440109726,4.08278776,92267.0,92266.0,10.49047629]
[1740440109943,4.55444528,92267.0,92266.0,10.46832481]
[1740440110112,5.17843288,92267.0,92266.0,9.81966595]
[1740440110341,5.17843288,92267.0,92266.0,8.74136255]
[1740440110520,4.91193288,92267.0,92266.0,8.01340434]
[1740440110726,4.91193288,92267.0,92266.0,7.29875334]
[1740440110727,4.87793288,92267.0,92266.0,7.29875334]
[1740440110955,4.87793288,92267.0,92266.0,6.70137417]
[1740440111106,5.22093432,92267.0,92266.0,6.68180888]
[1740440111310,5.25493432,92267.0,92266.0,6.05632998]
[1740440111528,5.27190148,92267.0,92266.0,5.57116649]
[1740440111750,5.27190148,92267.0,92266.0,5.08244118]
[1740440111947,5.28578148,92267.0,92266.0,5.01608461]
[1740440112149,4.44731673,92267.0,92266.0,3.42652823]
[1740440112466,4.41331673,92267.0,92266.0,2.89293423]
[1740440112715,4.44731673,92267.0,92266.0,2.74514412]
[1740440112889,5.28578148,92267.0,92266.0,2.72771964]
[1740440113089,5.28578148,92267.0,92266.0,2.22282862]
[1740440113302,5.28578148,92267.0,92266.0,1.42896344]
[1740440113475,5.28578148,92267.0,92266.0,1.02130519]
[1740440113679,5.22058148,92267.0,92266.0,1.00737051]
[1740440114007,5.20427816,92267.0,92266.0,0.92395305]
[1740440114213,5.20427816,92267.0,92266.0,0.71552667]
[1740440114214,7.85466116,92267.0,92266.0,0.71552667]
[1740440114423,7.69335916,92267.0,92266.0,0.69417343]
[1740440114712,5.20427816,92267.0,92266.0,0.58537343]
[1740440114914,5.20427816,92267.0,92266.0,0.49264681]
[1740440115061,5.20427816,92267.0,92266.0,0.32972195]
[1740440115257,5.26947816,92267.0,92266.0,0.19970192]
[1740440115457,5.26197816,92267.0,92266.0,0.14303658]
[1740440115664,0.1883,92263.0,92262.0,0.04333558]
[1740440115870,0.6883,92251.0,92250.0,4.95823816]
[1740440116125,0.6883,92251.0,92250.0,4.69846216]
[1740440116304,0.92465097,92251.0,92250.0,4.69846216]
[1740440116505,0.92465097,92251.0,92250.0,4.65922216]
[1740440116710,0.94095429,92251.0,92250.0,4.50602016]
[1740440116913,0.94095429,92251.0,92250.0,4.36892803]
[1740440116914,2.14095429,92251.0,92250.0,4.36892803]
[1740440117092,3.71580675,92251.0,92250.0,3.32848003]
[1740440117295,3.71580675,92251.0,92250.0,0.88505426]
[1740440117497,3.71580675,92251.0,92250.0,0.85810142]
[1740440117698,3.71580675,92251.0,92250.0,0.37156288]
[1740440117944,0.7535,92234.0,92233.0,12.76831223]
[1740440118137,6.18075443,92234.0,92233.0,12.39530623]
[1740440118314,4.04071969,92234.0,92233.0,12.32862645]
[1740440118517,4.04071969,92234.0,92233.0,11.75179708]
[1740440118843,4.75300762,92234.0,92233.0,10.33685192]
[1740440119057,4.7757149,92234.0,92233.0,8.28298187]
[1740440119232,4.77614661,92234.0,92233.0,7.06273175]
[1740440119458,4.77614661,92234.0,92233.0,6.66880222]
[1740440119800,5.27614661,92234.0,92233.0,3.98899658]
[1740440119941,0.7535,92201.0,92200.0,14.55530727]
[1740440120137,0.7535,92201.0,92200.0,13.43304627]
[1740440120138,3.80892743,92201.0,92200.0,13.43304627]
[1740440120336,3.84292743,92201.0,92200.0,13.42295751]
[1740440120540,4.0440087,92201.0,92200.0,12.46323806]
[1740440120738,4.0440087,92201.0,92200.0,12.40237235]
[1740440120739,4.55629663,92201.0,92200.0,12.40237235]
[1740440120959,4.55629663,92201.0,92200.0,10.9492641]
[1740440121126,5.22272808,92201.0,92200.0,9.42629351]
[1740440121324,4.28988206,92201.0,92200.0,9.05659404]
[1740440121537,4.28988206,92201.0,92200.0,8.27521597]
[1740440121744,4.79664681,92201.0,92200.0,8.27512424]
[1740440121944,4.78435888,92201.0,92200.0,7.93346432]
[1740440122144,4.78435888,92201.0,92200.0,7.27365054]
[1740440122145,5.05085888,92201.0,92200.0,7.27365054]
[1740440122341,5.05085888,92201.0,92200.0,6.91678682]
[1740440122549,5.05085888,92201.0,92200.0,5.46227683]
[1740440122748,4.36314681,92201.0,92200.0,4.76123291]
[1740440122945,4.37702681,92201.0,92200.0,4.17957479]
[1740440123149,4.34302681,92201.0,92200.0,2.96421509]
[1740440123442,4.37702681,92201.0,92200.0,1.67266709]
[1740440123646,4.36314681,92201.0,92200.0,1.01185192]
[1740440123851,4.3940937,92201.0,92200.0,0.3292671]
[1740440124065,0.7195,92167.0,92166.0,13.39645262]
[1740440124240,5.46161291,92167.0,92166.0,13.01161124]
[1740440124464,3.74004123,92167.0,92166.0,13.00161478]
[1740440124803,4.27404123,92167.0,92166.0,13.00161478]
[1740440125002,6.48043543,92167.0,92166.0,13.00034994]
[1740440125403,7.12780576,92167.0,92166.0,11.61246369]
[1740440125529,6.85833076,92167.0,92166.0,9.36221924]
[1740440125731,4.96529776,92167.0,92166.0,9.2982184]